[Event "Titled Tuesday Blitz June 13 Late 2023"]
[White "Krishnakumar, Sriram"]
[Black "Magallanes, Rey Jomar"]
[WhiteFideId "30915856"]
[BlackFideId "5205948"]
[WhiteElo "2482"]
[BlackElo "2274"]
[Result "1-0"]
[Round "2"]
[TimeControl "180+2"]
[Date "2023.06.13"]
[WhiteClock "0:00:19"]
[BlackClock "0:00:15"]
[Board "169"]

1. e4 {[%clk 0:03:00]}  c5 {[%clk 0:02:59]} 2. Nf3 {[%clk 0:03:01]}  d6 {[%clk 0:02:59]} 3. Bb5+ {[%clk 0:03:00]}  Bd7 {[%clk 0:02:59]} 4. Bxd7+ {[%clk 0:02:59]}  Qxd7 {[%clk 0:03:00]} 5. c4 {[%clk 0:02:59]}  Nc6 {[%clk 0:03:00]} 6. Nc3 {[%clk 0:03:00]}  g6 {[%clk 0:02:59]} 7. d4 {[%clk 0:03:00]}  cxd4 {[%clk 0:03:00]} 8. Nxd4 {[%clk 0:03:01]}  Bg7 {[%clk 0:03:01]} 9. Be3 {[%clk 0:03:01]}  Nf6 {[%clk 0:03:01]} 10. f3 {[%clk 0:03:02]}  O-O {[%clk 0:03:01]} 11. O-O {[%clk 0:03:01]}  e6 {[%clk 0:03:01]} 12. f4 {[%clk 0:02:50]}  Rac8 {[%clk 0:02:47]} 13. b3 {[%clk 0:02:44]}  d5 {[%clk 0:02:43]} 14. cxd5 {[%clk 0:02:38]}  exd5 {[%clk 0:02:37]} 15. e5 {[%clk 0:02:36]}  Ng4 {[%clk 0:02:33]} 16. Qd2 {[%clk 0:02:24]}  Nxe3 {[%clk 0:02:26]} 17. Qxe3 {[%clk 0:02:25]}  Rfe8 {[%clk 0:02:22]} 18. Nxc6 {[%clk 0:02:14]}  bxc6 {[%clk 0:02:16]} 19. Na4 {[%clk 0:02:14]}  d4 {[%clk 0:02:08]} 20. Qd3 {[%clk 0:02:09]}  c5 {[%clk 0:02:05]} 21. Rac1 {[%clk 0:02:08]}  Bf8 {[%clk 0:02:03]} 22. Rc4 {[%clk 0:02:07]}  Qg4 {[%clk 0:01:58]} 23. h3 {[%clk 0:02:03]}  Qh4 {[%clk 0:01:58]} 24. Kh2 {[%clk 0:01:59]}  Qh5 {[%clk 0:01:49]} 25. Rfc1 {[%clk 0:01:55]}  Bh6 {[%clk 0:01:31]} 26. g3 {[%clk 0:01:54]}  g5 {[%clk 0:01:28]} 27. Rxc5 {[%clk 0:01:17]}  Rxc5 {[%clk 0:01:25]} 28. Rxc5 {[%clk 0:01:18]}  gxf4 {[%clk 0:01:25]} 29. e6 {[%clk 0:01:18]}  fxg3+ {[%clk 0:01:08]} 30. Qxg3+ {[%clk 0:01:16]}  Qg6 {[%clk 0:01:08]} 31. exf7+ {[%clk 0:01:11]}  Kxf7 {[%clk 0:01:07]} 32. Rc7+ {[%clk 0:01:08]}  Kg8 {[%clk 0:01:06]} 33. Qxg6+ {[%clk 0:00:56]}  hxg6 {[%clk 0:01:07]} 34. Rd7 {[%clk 0:00:54]}  Bg7 {[%clk 0:00:58]} 35. Rxa7 {[%clk 0:00:49]}  d3 {[%clk 0:00:56]} 36. Rd7 {[%clk 0:00:46]}  Re2+ {[%clk 0:00:55]} 37. Kg3 {[%clk 0:00:46]}  d2 {[%clk 0:00:54]} 38. Kf3 {[%clk 0:00:46]}  Rh2 {[%clk 0:00:54]} 39. h4 {[%clk 0:00:36]}  Bh6 {[%clk 0:00:50]} 40. Nb2 {[%clk 0:00:32]}  Rxh4 {[%clk 0:00:38]} 41. a4 {[%clk 0:00:31]}  Rh3+ {[%clk 0:00:34]} 42. Ke2 {[%clk 0:00:30]}  Rxb3 {[%clk 0:00:34]} 43. Nd1 {[%clk 0:00:30]}  Ra3 {[%clk 0:00:32]} 44. Ra7 {[%clk 0:00:29]}  Rb3 {[%clk 0:00:29]} 45. a5 {[%clk 0:00:29]}  Rb5 {[%clk 0:00:28]} 46. a6 {[%clk 0:00:28]}  Re5+ {[%clk 0:00:28]} 47. Kd3 {[%clk 0:00:28]}  Ra5 {[%clk 0:00:26]} 48. Ra8+ {[%clk 0:00:27]}  Bf8 {[%clk 0:00:26]} 49. Kxd2 {[%clk 0:00:25]}  Ra3 {[%clk 0:00:24]} 50. Ke2 {[%clk 0:00:25]}  g5 {[%clk 0:00:23]} 51. Nf2 {[%clk 0:00:25]}  Kg7 {[%clk 0:00:23]} 52. Ng4 {[%clk 0:00:25]}  Bd6 {[%clk 0:00:22]} 53. Kf2 {[%clk 0:00:23]}  Ra2+ {[%clk 0:00:20]} 54. Kf3 {[%clk 0:00:23]}  Ra3+ {[%clk 0:00:20]} 55. Ke4 {[%clk 0:00:22]}  Ra4+ {[%clk 0:00:20]} 56. Kf5 {[%clk 0:00:23]}  Be7 {[%clk 0:00:19]} 57. Re8 {[%clk 0:00:21]}  Rf4+ {[%clk 0:00:19]} 58. Ke5 {[%clk 0:00:19]}  Rxg4 {[%clk 0:00:18]} 59. Rxe7+ {[%clk 0:00:19]}  Kg6 {[%clk 0:00:19]} 60. a7 {[%clk 0:00:17]}  Ra4 {[%clk 0:00:18]} 61. Kd5 {[%clk 0:00:13]}  g4 {[%clk 0:00:18]} 62. Kc5 {[%clk 0:00:14]}  Ra1 {[%clk 0:00:17]} 63. Kb5 {[%clk 0:00:13]}  Rb1+ {[%clk 0:00:17]} 64. Kc4 {[%clk 0:00:13]}  Ra1 {[%clk 0:00:18]} 65. Kb5 {[%clk 0:00:14]}  g3 {[%clk 0:00:16]} 66. Re6+ {[%clk 0:00:13]}  Kg5 {[%clk 0:00:16]} 67. Ra6 {[%clk 0:00:14]}  Rxa6 {[%clk 0:00:10]} 68. Kxa6 {[%clk 0:00:14]}  g2 {[%clk 0:00:10]} 69. a8=Q {[%clk 0:00:14]}  g1=Q {[%clk 0:00:11]} 70. Qg8+ {[%clk 0:00:14]}  Kh4 {[%clk 0:00:11]} 71. Qxg1 {[%clk 0:00:15]}  Kh3 {[%clk 0:00:11]} 72. Kb5 {[%clk 0:00:15]}  Kh4 {[%clk 0:00:12]} 73. Kc4 {[%clk 0:00:16]}  Kh5 {[%clk 0:00:12]} 74. Kd4 {[%clk 0:00:17]}  Kh6 {[%clk 0:00:13]} 75. Ke4 {[%clk 0:00:18]}  Kh7 {[%clk 0:00:13]} 76. Kf5 {[%clk 0:00:18]}  Kh8 {[%clk 0:00:14]} 77. Kf6 {[%clk 0:00:19]}  Kh7 {[%clk 0:00:15]} 78. Qg7# {[%clk 0:00:19]} 1-0


[Site "https://www.chess.com"]

[Event "Titled Tuesday Blitz June 13 Late 2023"]
[White "Yurasova, Daria"]
[Black "Vila Dupla, Aurelio"]
[WhiteFideId "34146919"]
[BlackFideId "2203383"]
[WhiteElo "2109"]
[BlackElo "2009"]
[Result "1-0"]
[Round "2"]
[TimeControl "180+2"]
[Date "2023.06.13"]
[WhiteClock "0:00:15"]
[BlackClock "0:00:01"]
[Board "170"]

1. e4 {[%clk 0:03:00]}  c5 {[%clk 0:02:59]} 2. Nf3 {[%clk 0:02:59]}  d6 {[%clk 0:02:59]} 3. Bb5+ {[%clk 0:02:59]}  Nd7 {[%clk 0:02:58]} 4. Ba4 {[%clk 0:02:52]}  Nf6 {[%clk 0:02:55]} 5. Qe2 {[%clk 0:02:49]}  a6 {[%clk 0:02:46]} 6. c3 {[%clk 0:02:48]}  e6 {[%clk 0:02:20]} 7. O-O {[%clk 0:02:48]}  Be7 {[%clk 0:02:19]} 8. d4 {[%clk 0:02:38]}  O-O {[%clk 0:02:16]} 9. Bg5 {[%clk 0:02:32]}  h6 {[%clk 0:02:16]} 10. Bh4 {[%clk 0:02:32]}  b5 {[%clk 0:02:14]} 11. Bc2 {[%clk 0:02:30]}  Bb7 {[%clk 0:02:14]} 12. Nbd2 {[%clk 0:02:30]}  e5 {[%clk 0:01:59]} 13. d5 {[%clk 0:02:09]}  Re8 {[%clk 0:01:37]} 14. a4 {[%clk 0:02:03]}  Rb8 {[%clk 0:01:19]} 15. Bg3 {[%clk 0:01:57]}  Nh7 {[%clk 0:01:18]} 16. axb5 {[%clk 0:01:29]}  axb5 {[%clk 0:01:17]} 17. Bd3 {[%clk 0:01:26]}  c4 {[%clk 0:01:15]} 18. Bc2 {[%clk 0:01:23]}  Nc5 {[%clk 0:01:11]} 19. Rfd1 {[%clk 0:01:15]}  Bg5 {[%clk 0:01:11]} 20. Nf1 {[%clk 0:01:11]}  Bf4 {[%clk 0:01:08]} 21. Ne3 {[%clk 0:01:10]}  Bxe3 {[%clk 0:01:04]} 22. Qxe3 {[%clk 0:01:11]}  Ng5 {[%clk 0:01:03]} 23. Nxg5 {[%clk 0:01:09]}  Qxg5 {[%clk 0:01:03]} 24. Qxg5 {[%clk 0:01:06]}  hxg5 {[%clk 0:01:03]} 25. f3 {[%clk 0:01:07]}  Ra8 {[%clk 0:00:59]} 26. Bf2 {[%clk 0:01:06]}  Nd7 {[%clk 0:00:57]} 27. Be3 {[%clk 0:00:54]}  f6 {[%clk 0:00:57]} 28. b3 {[%clk 0:00:50]}  Rxa1 {[%clk 0:00:54]} 29. Rxa1 {[%clk 0:00:50]}  Ra8 {[%clk 0:00:54]} 30. Rxa8+ {[%clk 0:00:48]}  Bxa8 {[%clk 0:00:54]} 31. bxc4 {[%clk 0:00:49]}  bxc4 {[%clk 0:00:53]} 32. Ba4 {[%clk 0:00:48]}  Nb8 {[%clk 0:00:45]} 33. Bb5 {[%clk 0:00:39]}  Bb7 {[%clk 0:00:44]} 34. Ba7 {[%clk 0:00:31]}  Ba6 {[%clk 0:00:20]} 35. Bxc4 {[%clk 0:00:24]}  Bxc4 {[%clk 0:00:19]} 36. Bxb8 {[%clk 0:00:24]}  Kf7 {[%clk 0:00:19]} 37. Bxd6 {[%clk 0:00:25]}  g6 {[%clk 0:00:19]} 38. Kf2 {[%clk 0:00:24]}  Ke8 {[%clk 0:00:18]} 39. g3 {[%clk 0:00:20]}  Kd7 {[%clk 0:00:18]} 40. Bf8 {[%clk 0:00:20]}  f5 {[%clk 0:00:16]} 41. Ke3 {[%clk 0:00:20]}  fxe4 {[%clk 0:00:14]} 42. Kxe4 {[%clk 0:00:15]}  Bb3 {[%clk 0:00:14]} 43. Kxe5 {[%clk 0:00:15]}  Bc2 {[%clk 0:00:12]} 44. Kf6 {[%clk 0:00:14]}  Bd3 {[%clk 0:00:10]} 45. Kxg5 {[%clk 0:00:14]}  Bf5 {[%clk 0:00:10]} 46. c4 {[%clk 0:00:14]}  Bd3 {[%clk 0:00:10]} 47. c5 {[%clk 0:00:14]}  Bc4 {[%clk 0:00:11]} 48. Kxg6 {[%clk 0:00:09]}  Bxd5 {[%clk 0:00:10]} 49. f4 {[%clk 0:00:10]}  Ke6 {[%clk 0:00:10]} 50. Bd6 {[%clk 0:00:10]}  Be4+ {[%clk 0:00:09]} 51. Kg5 {[%clk 0:00:10]}  Bf5 {[%clk 0:00:09]} 52. h4 {[%clk 0:00:11]}  Bh7 {[%clk 0:00:09]} 53. g4 {[%clk 0:00:12]}  Kf7 {[%clk 0:00:09]} 54. f5 {[%clk 0:00:12]}  Bg8 {[%clk 0:00:08]} 55. c6 {[%clk 0:00:13]}  Ke8 {[%clk 0:00:06]} 56. c7 {[%clk 0:00:13]}  Kd7 {[%clk 0:00:06]} 57. Bf4 {[%clk 0:00:14]}  Bf7 {[%clk 0:00:06]} 58. Kf6 {[%clk 0:00:14]}  Be8 {[%clk 0:00:01]} 59. h5 {[%clk 0:00:15]} 1-0


[Site "https://www.chess.com"]

[Event "Titled Tuesday Blitz June 13 Late 2023"]
[White "Liu, Kelsey"]
[Black "Uzcategui Rodriguez, Alejandro"]
[WhiteFideId "30944481"]
[BlackFideId "3903400"]
[WhiteElo "2268"]
[BlackElo "2252"]
[Result "0-1"]
[Round "2"]
[TimeControl "180+2"]
[Date "2023.06.13"]
[WhiteClock "0:00:01"]
[BlackClock "0:00:21"]
[Board "171"]

1. e4 {[%clk 0:02:58]}  d6 {[%clk 0:03:00]} 2. d4 {[%clk 0:02:57]}  Nf6 {[%clk 0:03:01]} 3. Nc3 {[%clk 0:02:57]}  Nbd7 {[%clk 0:03:01]} 4. Bf4 {[%clk 0:02:57]}  e5 {[%clk 0:03:02]} 5. dxe5 {[%clk 0:02:58]}  dxe5 {[%clk 0:03:03]} 6. Bg3 {[%clk 0:02:56]}  c6 {[%clk 0:03:01]} 7. Nf3 {[%clk 0:02:56]}  Qc7 {[%clk 0:03:02]} 8. Bc4 {[%clk 0:02:56]}  Be7 {[%clk 0:03:01]} 9. Qe2 {[%clk 0:02:55]}  O-O {[%clk 0:03:01]} 10. O-O-O {[%clk 0:02:56]}  b5 {[%clk 0:03:01]} 11. Bb3 {[%clk 0:02:51]}  a5 {[%clk 0:03:01]} 12. a4 {[%clk 0:02:51]}  b4 {[%clk 0:03:02]} 13. Nb1 {[%clk 0:02:48]}  c5 {[%clk 0:02:54]} 14. Nbd2 {[%clk 0:02:47]}  Ba6 {[%clk 0:02:53]} 15. Bc4 {[%clk 0:02:46]}  Bb7 {[%clk 0:02:52]} 16. Nh4 {[%clk 0:02:38]}  Rfe8 {[%clk 0:02:51]} 17. Nf5 {[%clk 0:02:37]}  Bf8 {[%clk 0:02:51]} 18. f3 {[%clk 0:02:35]}  Nb6 {[%clk 0:02:51]} 19. Bb5 {[%clk 0:02:34]}  Bc6 {[%clk 0:02:51]} 20. b3 {[%clk 0:02:23]}  g6 {[%clk 0:02:42]} 21. Ne3 {[%clk 0:02:23]}  Bh6 {[%clk 0:02:39]} 22. Kb2 {[%clk 0:02:18]}  Bg7 {[%clk 0:02:23]} 23. h4 {[%clk 0:02:15]}  Nh5 {[%clk 0:02:22]} 24. Bh2 {[%clk 0:02:16]}  Nf4 {[%clk 0:02:22]} 25. Qf1 {[%clk 0:02:10]}  Ne6 {[%clk 0:02:20]} 26. Bxc6 {[%clk 0:02:03]}  Qxc6 {[%clk 0:02:20]} 27. Ndc4 {[%clk 0:02:04]}  Nd4 {[%clk 0:02:17]} 28. h5 {[%clk 0:02:00]}  Nc8 {[%clk 0:01:49]} 29. hxg6 {[%clk 0:01:54]}  hxg6 {[%clk 0:01:48]} 30. Ng4 {[%clk 0:01:46]}  Qc7 {[%clk 0:01:44]} 31. Bg3 {[%clk 0:01:16]}  Nb6 {[%clk 0:01:41]} 32. Rh3 {[%clk 0:01:10]}  f6 {[%clk 0:01:08]} 33. Nxb6 {[%clk 0:01:01]}  Qxb6 {[%clk 0:01:08]} 34. Qc4+ {[%clk 0:01:02]}  Qe6 {[%clk 0:01:07]} 35. Qxe6+ {[%clk 0:00:45]}  Rxe6 {[%clk 0:01:07]} 36. Bf2 {[%clk 0:00:42]}  Rc8 {[%clk 0:00:55]} 37. Ne3 {[%clk 0:00:33]}  Nc6 {[%clk 0:00:41]} 38. Nc4 {[%clk 0:00:33]}  Nd4 {[%clk 0:00:36]} 39. Nxa5 {[%clk 0:00:32]}  f5 {[%clk 0:00:35]} 40. Rhh1 {[%clk 0:00:29]}  Rf8 {[%clk 0:00:35]} 41. exf5 {[%clk 0:00:25]}  gxf5 {[%clk 0:00:31]} 42. Bxd4 {[%clk 0:00:25]}  cxd4 {[%clk 0:00:29]} 43. Ka2 {[%clk 0:00:20]}  e4 {[%clk 0:00:29]} 44. Rhe1 {[%clk 0:00:18]}  Rfe8 {[%clk 0:00:27]} 45. fxe4 {[%clk 0:00:17]}  fxe4 {[%clk 0:00:28]} 46. Nc4 {[%clk 0:00:17]}  e3 {[%clk 0:00:24]} 47. Re2 {[%clk 0:00:16]}  Rf8 {[%clk 0:00:22]} 48. a5 {[%clk 0:00:13]}  Rg6 {[%clk 0:00:22]} 49. Kb1 {[%clk 0:00:08]}  Rf2 {[%clk 0:00:20]} 50. Rde1 {[%clk 0:00:07]}  Rgxg2 {[%clk 0:00:20]} 51. Rxf2 {[%clk 0:00:02]}  exf2 {[%clk 0:00:21]} 52. Rf1 {[%clk 0:00:02]}  Rg1 {[%clk 0:00:21]} 53. Nd2 {[%clk 0:00:02]}  Bh6 {[%clk 0:00:21]} 54. Rxg1+ {[%clk 0:00:01]}  fxg1=Q+ {[%clk 0:00:21]} 0-1


[Site "https://www.chess.com"]

[Event "Titled Tuesday Blitz June 13 Late 2023"]
[White "Sala, Giulia"]
[Black "Ladan, Nicholas"]
[WhiteFideId "2840451"]
[BlackFideId "30918855"]
[WhiteElo "1769"]
[BlackElo "2167"]
[Result "1/2-1/2"]
[Round "2"]
[TimeControl "180+2"]
[Date "2023.06.13"]
[WhiteClock "0:00:58"]
[BlackClock "0:00:11"]
[Board "172"]

1. d4 {[%clk 0:03:00]}  b6 {[%clk 0:02:56]} 2. e4 {[%clk 0:02:58]}  Bb7 {[%clk 0:02:56]} 3. Bd3 {[%clk 0:02:58]}  f5 {[%clk 0:02:56]} 4. exf5 {[%clk 0:02:53]}  Bxg2 {[%clk 0:02:56]} 5. Qh5+ {[%clk 0:02:53]}  g6 {[%clk 0:02:56]} 6. fxg6 {[%clk 0:02:54]}  Bg7 {[%clk 0:02:55]} 7. gxh7+ {[%clk 0:02:52]}  Kf8 {[%clk 0:02:56]} 8. hxg8=Q+ {[%clk 0:02:41]}  Kxg8 {[%clk 0:02:57]} 9. Qg4 {[%clk 0:02:20]}  Bxh1 {[%clk 0:02:53]} 10. Be3 {[%clk 0:02:18]}  e6 {[%clk 0:02:29]} 11. Nd2 {[%clk 0:02:15]}  Qh4 {[%clk 0:02:27]} 12. Qxh4 {[%clk 0:02:12]}  Rxh4 {[%clk 0:02:26]} 13. Ngf3 {[%clk 0:02:13]}  Bxf3 {[%clk 0:02:23]} 14. Nxf3 {[%clk 0:02:14]}  Rh3 {[%clk 0:02:19]} 15. Ke2 {[%clk 0:02:13]}  Nc6 {[%clk 0:02:15]} 16. c3 {[%clk 0:02:11]}  Rf8 {[%clk 0:02:13]} 17. Ng5 {[%clk 0:01:57]}  Rxh2 {[%clk 0:02:11]} 18. Rg1 {[%clk 0:01:57]}  Ne7 {[%clk 0:01:53]} 19. c4 {[%clk 0:01:50]}  Nf5 {[%clk 0:01:49]} 20. Bxf5 {[%clk 0:01:45]}  Rxf5 {[%clk 0:01:45]} 21. Kd3 {[%clk 0:01:40]}  Kf8 {[%clk 0:01:33]} 22. Ne4 {[%clk 0:01:28]}  Bh6 {[%clk 0:01:11]} 23. c5 {[%clk 0:01:25]}  Bxe3 {[%clk 0:01:03]} 24. Kxe3 {[%clk 0:01:26]}  bxc5 {[%clk 0:00:57]} 25. Nxc5 {[%clk 0:01:20]}  Rfxf2 {[%clk 0:00:55]} 26. Nxd7+ {[%clk 0:01:20]}  Ke7 {[%clk 0:00:56]} 27. Rg7+ {[%clk 0:01:20]}  Kd6 {[%clk 0:00:53]} 28. Ne5 {[%clk 0:01:13]}  Re2+ {[%clk 0:00:49]} 29. Kd3 {[%clk 0:01:13]}  Rd2+ {[%clk 0:00:42]} 30. Ke3 {[%clk 0:01:05]}  Rhe2+ {[%clk 0:00:27]} 31. Kf3 {[%clk 0:01:05]}  Rxe5 {[%clk 0:00:19]} 32. dxe5+ {[%clk 0:01:06]}  Kc6 {[%clk 0:00:18]} 33. Re7 {[%clk 0:01:03]}  Rxb2 {[%clk 0:00:15]} 34. Rxe6+ {[%clk 0:01:04]}  Kd7 {[%clk 0:00:15]} 35. Ra6 {[%clk 0:01:04]}  c5 {[%clk 0:00:07]} 36. Ke4 {[%clk 0:01:02]}  Rd2 {[%clk 0:00:05]} 37. Rxa7+ {[%clk 0:01:01]}  Kc6 {[%clk 0:00:05]} 38. a4 {[%clk 0:00:56]}  c4 {[%clk 0:00:05]} 39. Ra6+ {[%clk 0:00:55]}  Kb7 {[%clk 0:00:05]} 40. Rd6 {[%clk 0:00:54]}  Rxd6 {[%clk 0:00:04]} 41. exd6 {[%clk 0:00:54]}  Kc6 {[%clk 0:00:05]} 42. Kd4 {[%clk 0:00:54]}  Kxd6 {[%clk 0:00:05]} 43. Kxc4 {[%clk 0:00:55]}  Kc6 {[%clk 0:00:06]} 44. a5 {[%clk 0:00:55]}  Kb7 {[%clk 0:00:07]} 45. Kb5 {[%clk 0:00:55]}  Ka8 {[%clk 0:00:08]} 46. a6 {[%clk 0:00:56]}  Ka7 {[%clk 0:00:09]} 47. Ka5 {[%clk 0:00:56]}  Ka8 {[%clk 0:00:10]} 48. Kb6 {[%clk 0:00:57]}  Kb8 {[%clk 0:00:10]} 49. a7+ {[%clk 0:00:58]}  Ka8 {[%clk 0:00:11]} 50. Ka6 {[%clk 0:00:58]} 1/2-1/2


[Site "https://www.chess.com"]

[Event "Titled Tuesday Blitz June 13 Late 2023"]
[White "Mika, Tomasz"]
[Black "Wang, Alexander J"]
[WhiteFideId "1132970"]
[BlackFideId "30955270"]
[WhiteElo "2186"]
[BlackElo "2256"]
[Result "1-0"]
[Round "2"]
[TimeControl "180+2"]
[Date "2023.06.13"]
[WhiteClock "0:02:57"]
[BlackClock "0:02:13"]
[Board "173"]

1. d4 {[%clk 0:03:00]}  d5 {[%clk 0:02:59]} 2. Bf4 {[%clk 0:03:00]}  c5 {[%clk 0:02:58]} 3. e3 {[%clk 0:03:00]}  Nf6 {[%clk 0:02:59]} 4. Nf3 {[%clk 0:03:00]}  Nc6 {[%clk 0:02:59]} 5. Nbd2 {[%clk 0:03:00]}  e6 {[%clk 0:02:57]} 6. c3 {[%clk 0:02:58]}  Bd6 {[%clk 0:02:56]} 7. Bg3 {[%clk 0:02:58]}  O-O {[%clk 0:02:55]} 8. Bd3 {[%clk 0:02:59]}  b6 {[%clk 0:02:48]} 9. e4 {[%clk 0:02:58]}  dxe4 {[%clk 0:02:45]} 10. Nxe4 {[%clk 0:02:58]}  Nxe4 {[%clk 0:02:44]} 11. Bxe4 {[%clk 0:02:59]}  Bb7 {[%clk 0:02:44]} 12. dxc5 {[%clk 0:02:59]}  Bxc5 {[%clk 0:02:41]} 13. Qa4 {[%clk 0:02:59]}  Qe8 {[%clk 0:02:33]} 14. Bxh7+ {[%clk 0:02:57]}  Kxh7 {[%clk 0:02:28]} 15. Qh4+ {[%clk 0:02:56]}  Kg6 {[%clk 0:02:18]} 16. Qg5+ {[%clk 0:02:56]}  Kh7 {[%clk 0:02:18]} 17. Qh5+ {[%clk 0:02:57]}  Kg8 {[%clk 0:02:13]} 18. Ng5 {[%clk 0:02:57]} 1-0


[Site "https://www.chess.com"]

[Event "Titled Tuesday Blitz June 13 Late 2023"]
[White "SicilianPanzer"]
[Black "Kokoszczynski, Jan"]
[BlackFideId "1174460"]
[WhiteElo "2238"]
[BlackElo "2139"]
[Result "0-1"]
[Round "2"]
[TimeControl "180+2"]
[Date "2023.06.13"]
[WhiteClock "0:00:00"]
[BlackClock "0:00:04"]
[Board "174"]

1. e4 {[%clk 0:03:00]}  e5 {[%clk 0:02:56]} 2. Nc3 {[%clk 0:02:59]}  Nf6 {[%clk 0:02:55]} 3. Nf3 {[%clk 0:02:59]}  Nc6 {[%clk 0:02:55]} 4. a3 {[%clk 0:02:59]}  d5 {[%clk 0:02:48]} 5. Bb5 {[%clk 0:02:58]}  dxe4 {[%clk 0:02:29]} 6. Nxe5 {[%clk 0:02:55]}  Qd6 {[%clk 0:02:29]} 7. d4 {[%clk 0:02:49]}  a6 {[%clk 0:01:55]} 8. Bf4 {[%clk 0:01:55]}  axb5 {[%clk 0:01:45]} 9. Nxb5 {[%clk 0:01:54]}  Qd8 {[%clk 0:01:41]} 10. Nxc6 {[%clk 0:01:52]}  bxc6 {[%clk 0:01:41]} 11. Nxc7+ {[%clk 0:01:51]}  Kd7 {[%clk 0:01:42]} 12. Nxa8 {[%clk 0:01:50]}  Qa5+ {[%clk 0:01:42]} 13. Qd2 {[%clk 0:01:38]}  Qxa8 {[%clk 0:01:41]} 14. O-O {[%clk 0:01:35]}  Ba6 {[%clk 0:01:40]} 15. Rfe1 {[%clk 0:01:31]}  Be7 {[%clk 0:01:38]} 16. Be5 {[%clk 0:01:17]}  Re8 {[%clk 0:01:26]} 17. Qg5 {[%clk 0:01:12]}  Bc4 {[%clk 0:01:11]} 18. b3 {[%clk 0:01:02]}  Be6 {[%clk 0:01:11]} 19. Qxg7 {[%clk 0:00:55]}  Rg8 {[%clk 0:01:09]} 20. Qh6 {[%clk 0:00:55]}  Ng4 {[%clk 0:01:08]} 21. Qxh7 {[%clk 0:00:49]}  Nxe5 {[%clk 0:01:00]} 22. dxe5 {[%clk 0:00:46]}  Rg6 {[%clk 0:00:47]} 23. Rad1+ {[%clk 0:00:38]}  Kc7 {[%clk 0:00:48]} 24. Rxe4 {[%clk 0:00:13]}  c5 {[%clk 0:00:24]} 25. f3 {[%clk 0:00:12]}  Qxa3 {[%clk 0:00:16]} 26. h4 {[%clk 0:00:04]}  c4 {[%clk 0:00:10]} 27. h5 {[%clk 0:00:04]}  Qc5+ {[%clk 0:00:10]} 28. Kf1 {[%clk 0:00:04]}  Rg5 {[%clk 0:00:10]} 29. Qh8 {[%clk 0:00:02]}  c3 {[%clk 0:00:04]} 30. Qa8 {[%clk 0:00:02]}  Qb5+ {[%clk 0:00:04]} 31. Kf2 {[%clk 0:00:02]}  Bc5+ {[%clk 0:00:05]} 32. Rdd4 {[%clk 0:00:00]}  Qb6 {[%clk 0:00:04]} 0-1


[Site "https://www.chess.com"]

[Event "Titled Tuesday Blitz June 13 Late 2023"]
[White "Baches Garcia, Guillermo"]
[Black "Martinez, Ayelen"]
[WhiteFideId "2209764"]
[BlackFideId "118702"]
[WhiteElo "2474"]
[BlackElo "2074"]
[Result "1-0"]
[Round "2"]
[TimeControl "180+2"]
[Date "2023.06.13"]
[WhiteClock "0:00:08"]
[BlackClock "0:00:00"]
[Board "175"]

1. e4 {[%clk 0:03:00]}  c5 {[%clk 0:02:59]} 2. Nf3 {[%clk 0:03:00]}  d6 {[%clk 0:02:59]} 3. d4 {[%clk 0:03:01]}  cxd4 {[%clk 0:03:00]} 4. Nxd4 {[%clk 0:03:01]}  Nf6 {[%clk 0:03:01]} 5. Nc3 {[%clk 0:03:01]}  a6 {[%clk 0:03:02]} 6. Be3 {[%clk 0:03:02]}  e5 {[%clk 0:03:02]} 7. Nb3 {[%clk 0:03:02]}  Be7 {[%clk 0:03:03]} 8. f3 {[%clk 0:03:01]}  O-O {[%clk 0:03:03]} 9. Qd2 {[%clk 0:02:58]}  Be6 {[%clk 0:03:04]} 10. O-O-O {[%clk 0:02:56]}  Qc7 {[%clk 0:03:04]} 11. g4 {[%clk 0:02:55]}  Rc8 {[%clk 0:03:02]} 12. Kb1 {[%clk 0:02:53]}  d5 {[%clk 0:02:50]} 13. g5 {[%clk 0:02:26]}  d4 {[%clk 0:02:49]} 14. Nxd4 {[%clk 0:02:26]}  exd4 {[%clk 0:02:41]} 15. Bxd4 {[%clk 0:02:22]}  Nh5 {[%clk 0:02:38]} 16. Be3 {[%clk 0:02:18]}  Nc6 {[%clk 0:02:19]} 17. Nd5 {[%clk 0:02:17]}  Bxd5 {[%clk 0:02:18]} 18. exd5 {[%clk 0:02:17]}  Nb4 {[%clk 0:02:16]} 19. c3 {[%clk 0:01:58]}  Nxd5 {[%clk 0:01:59]} 20. Qxd5 {[%clk 0:01:58]}  Rd8 {[%clk 0:01:59]} 21. Qb3 {[%clk 0:01:56]}  Rdc8 {[%clk 0:01:45]} 22. Bh3 {[%clk 0:01:48]}  Rd8 {[%clk 0:01:33]} 23. Bg4 {[%clk 0:01:32]}  Rxd1+ {[%clk 0:01:27]} 24. Rxd1 {[%clk 0:01:24]}  Qxh2 {[%clk 0:01:10]} 25. Bxh5 {[%clk 0:00:57]}  Qxh5 {[%clk 0:01:05]} 26. Qxb7 {[%clk 0:00:56]}  Qg6+ {[%clk 0:00:58]} 27. Qe4 {[%clk 0:00:50]}  Qxe4+ {[%clk 0:00:32]} 28. fxe4 {[%clk 0:00:51]}  Re8 {[%clk 0:00:32]} 29. Kc2 {[%clk 0:00:44]}  Bf8 {[%clk 0:00:29]} 30. Kd3 {[%clk 0:00:38]}  Rd8+ {[%clk 0:00:21]} 31. Ke2 {[%clk 0:00:37]}  Re8 {[%clk 0:00:22]} 32. Kf3 {[%clk 0:00:35]}  g6 {[%clk 0:00:20]} 33. c4 {[%clk 0:00:29]}  h5 {[%clk 0:00:17]} 34. gxh6 {[%clk 0:00:28]}  Kh7 {[%clk 0:00:16]} 35. c5 {[%clk 0:00:28]}  Rb8 {[%clk 0:00:12]} 36. b3 {[%clk 0:00:24]}  g5 {[%clk 0:00:12]} 37. Rd7 {[%clk 0:00:20]}  Bxh6 {[%clk 0:00:11]} 38. Rxf7+ {[%clk 0:00:17]}  Kg6 {[%clk 0:00:11]} 39. Ra7 {[%clk 0:00:17]}  g4+ {[%clk 0:00:11]} 40. Ke2 {[%clk 0:00:17]}  Bf8 {[%clk 0:00:08]} 41. Rxa6+ {[%clk 0:00:15]}  Kh5 {[%clk 0:00:08]} 42. c6 {[%clk 0:00:15]}  Rc8 {[%clk 0:00:07]} 43. Rb6 {[%clk 0:00:12]}  g3 {[%clk 0:00:07]} 44. a4 {[%clk 0:00:12]}  Bd6 {[%clk 0:00:05]} 45. a5 {[%clk 0:00:11]}  Rf8 {[%clk 0:00:04]} 46. a6 {[%clk 0:00:10]}  g2 {[%clk 0:00:04]} 47. a7 {[%clk 0:00:09]}  Bc7 {[%clk 0:00:00]} 48. Rb7 {[%clk 0:00:08]} 1-0


[Site "https://www.chess.com"]